bitfinex/quotes_ETHUSD_20250913
["timestamp","ask_amount","ask_price","bid_price","bid_amount"]
[1757779875756,11.75829645,4635.9,4635.8,0.001]
[1757779875938,11.75729645,4635.9,4635.8,0.001]
[1757779876141,7.03829645,4635.9,4635.8,0.001]
[1757779876530,11.75629645,4635.9,4635.8,0.001]
[1757779876935,7.03829645,4635.9,4635.8,0.001]
[1757779877131,11.75629645,4635.9,4635.8,0.001]
[1757779877528,7.03829645,4635.9,4635.8,0.001]
[1757779877861,11.75629645,4635.9,4635.8,0.001]
[1757779878735,11.34959645,4635.9,4635.8,0.001]
[1757779878955,7.48885613,4635.9,4635.8,0.001]
[1757779879125,11.83964674,4635.9,4635.8,0.001]
[1757779879326,7.57520642,4635.9,4635.8,0.001]
[1757779879540,11.75229645,4635.9,4635.8,0.001]
[1757779879862,12.20285613,4635.9,4635.8,0.001]
[1757779881576,12.48105613,4635.9,4635.8,0.001]
[1757779882260,12.20285613,4635.9,4635.8,0.001]
[1757779882865,12.19885613,4635.9,4635.8,0.001]
[1757779883664,7.48885613,4635.9,4635.8,0.001]
[1757779883867,7.03829645,4635.9,4635.8,0.001]
[1757779884246,7.03829645,4635.9,4635.4,0.001]
[1757779884247,0.792,4635.0,4634.8,1e-08]
[1757779884424,12.33200672,4634.9,4634.8,1e-08]
[1757779884624,13.13618556,4634.9,4634.8,1e-08]
[1757779885484,12.12898556,4634.9,4634.8,1e-08]
[1757779885661,12.92098556,4634.9,4634.8,1e-08]
[1757779885868,14.42883138,4634.9,4634.8,1e-08]
[1757779886293,14.42783138,4634.9,4634.8,1e-08]
[1757779886465,14.64103138,4634.9,4634.8,1e-08]
[1757779886889,15.93403138,4634.9,4634.8,1e-08]
[1757779887090,16.38284221,4634.9,4634.8,1e-08]
[1757779888866,16.37984221,4634.9,4634.8,1e-08]
[1757779889778,11.67784221,4634.9,4634.8,1e-08]
[1757779889980,9.57403138,4634.9,4634.8,1e-08]
[1757779890381,2.085,4634.0,4632.8,0.08]
[1757779890689,2.95047525,4632.9,4632.8,0.08]
[1757779890886,9.32493812,4632.9,4632.8,0.08]
[1757779891100,9.40447525,4632.9,4632.8,0.08]
[1757779891285,9.59912147,4632.9,4632.8,1e-08]
[1757779892165,9.59912147,4632.9,4631.2,1.2364]
[1757779892166,2.95084803,4632.1,4632.0,1e-08]
[1757779892374,7.64784803,4632.1,4632.0,1e-08]
[1757779892566,7.84249425,4632.1,4632.0,1e-08]
[1757779892765,3.14549425,4632.1,4632.0,1e-08]
[1757779892986,7.6663109,4632.1,4632.0,1e-08]
[1757779893186,4.05977986,4632.1,4632.0,1e-08]
[1757779893382,8.57959651,4632.1,4632.0,1e-08]
[1757779893625,8.56013364,4632.1,4632.0,1e-08]
[1757779894233,8.85374176,4632.1,4632.0,1e-08]
[1757779895208,4.05974176,4632.1,4632.0,1e-08]
[1757779895398,3.88459651,4632.1,4632.0,1e-08]
[1757779895919,6.8703109,4632.1,4632.0,1e-08]
[1757779896086,4.692,4632.1,4632.0,2.01050001]
[1757779896896,2.1588049,4632.2,4632.0,2.01050001]
[1757779897097,0.01946287,4632.5,4632.0,0.30700001]
[1757779897328,2.15881604,4632.2,4632.0,0.30700001]
[1757779897514,2.1783109,4632.1,4632.0,0.30700001]
[1757779897819,0.01946287,4632.1,4632.0,0.30700001]
[1757779898032,0.792,4632.2,4632.0,0.30700001]
[1757779898319,0.01946287,4632.6,4632.0,0.30700001]
[1757779898320,0.81146287,4632.6,4632.1,1.7035]
[1757779898524,2.15838337,4633.1,4632.5,0.307]
[1757779898719,0.31189087,4633.8,4632.5,0.307]
[1757779898720,1.67546287,4633.0,4632.5,0.307]
[1757779899022,1.656,4632.9,4632.6,1.7035]
[1757779899316,0.01946287,4632.8,4632.7,0.4671]
[1757779899518,0.87165141,4632.8,4632.0,0.46710001]
[1757779899705,2.95084803,4632.1,4632.0,0.46710001]
[1757779899915,7.63684803,4632.1,4632.0,0.77410001]
[1757779900284,0.98739637,4632.1,4632.0,0.77410001]
[1757779900517,5.478,4632.1,4632.0,2.01050001]
[1757779900728,0.31263426,4632.8,4632.0,2.01050001]
[1757779900908,0.01946287,4632.7,4632.1,0.4671]
[1757779901111,0.01946287,4632.7,4632.6,0.307]
[1757779901112,2.1780313,4632.7,4632.6,0.307]
[1757779901427,7.05742767,4632.7,4632.6,0.7741]
[1757779901587,7.0379648,4632.7,4632.6,0.7741]
[1757779901988,2.3539648,4632.7,4632.6,2.0105]
[1757779902217,7.0359648,4632.7,4632.6,2.0105]
[1757779902419,7.15331791,4632.7,4632.6,2.0105]
[1757779902604,7.15367155,4632.7,4632.6,2.0105]
[1757779903012,7.15367155,4632.7,4632.6,0.7741]
[1757779903689,18.83668669,4632.7,4632.6,0.307]
[1757779903888,18.83668669,4632.7,4632.1,0.4671]
[1757779903889,2.15880143,4632.2,4632.1,0.4671]
[1757779904152,7.05395375,4632.2,4632.1,0.4671]
[1757779904284,2.95084803,4632.1,4632.0,0.00100001]
[1757779904488,3.26407065,4632.1,4632.0,0.00100001]
[1757779904823,6.83247771,4632.1,4632.0,0.00100001]
[1757779906108,11.50847771,4632.1,4632.0,0.28900001]
[1757779906311,11.50847771,4632.1,4632.0,0.75800001]
[1757779906623,6.03807065,4632.1,4632.0,0.75800001]
[1757779906819,10.59653748,4632.1,4632.0,0.75800001]
[1757779907019,6.03807065,4632.1,4632.0,0.75800001]
[1757779907221,10.59553748,4632.1,4632.0,0.00100001]
[1757779907421,6.03807065,4632.1,4632.0,0.00100001]
[1757779907625,3.87922262,4632.1,4632.0,0.75800001]
[1757779907826,10.71107065,4632.1,4632.0,2.01000001]
[1757779908036,10.71107065,4632.1,4632.0,0.00100001]
[1757779908212,10.71107065,4632.1,4632.0,0.75800001]
[1757779908213,7.76022262,4632.1,4632.0,0.75800001]
[1757779908418,3.08722262,4632.1,4632.0,2.01000001]
[1757779908614,9.29768945,4632.1,4632.0,4.16889465]
[1757779908935,9.29768945,4632.1,4632.0,4.80168195]
[1757779909103,4.62568945,4632.1,4632.0,2.64278731]
[1757779909304,4.62568945,4632.1,4632.0,4.16889465]
[1757779909706,9.29568945,4632.1,4632.0,4.16889465]
[1757779910215,4.62568945,4632.1,4632.0,4.16889465]
[1757779910429,9.29468945,4632.1,4632.0,4.16889465]
[1757779910826,0.19568945,4632.1,4632.0,4.16889465]
[1757779911028,4.669,4632.1,4632.0,4.8038396]
[1757779911337,0.1072,4632.3,4632.2,2.15880143]
[1757779911538,4.97064998,4632.3,4632.1,1.6063]
[1757779911739,4.7742,4632.3,4632.2,4.07890143]
[1757779911913,4.97064798,4632.3,4632.2,4.07890143]
[1757779912410,4.96864798,4632.3,4632.2,4.07890143]
[1757779913239,0.30364798,4632.3,4632.2,4.07890143]
[1757779913440,4.96864798,4632.3,4632.2,4.07890143]
[1757779913938,4.96880067,4632.3,4632.2,4.07890143]
[1757779914151,0.30380067,4632.3,4632.2,4.07890143]
[1757779914527,4.85860067,4632.3,4632.2,4.07890143]
[1757779915529,4.85860067,4632.3,4632.2,4.02890143]
[1757779916770,4.85460067,4632.3,4632.2,4.02890143]
[1757779917258,4.658,4632.3,4632.2,4.02890143]
[1757779917960,0.002,4632.8,4632.7,2.15856843]
[1757779918125,0.19875895,4632.8,4632.7,2.18015411]
[1757779918330,4.657,4632.8,4632.7,4.07866843]
[1757779918750,0.002,4632.8,4632.7,4.07866843]
[1757779918955,4.656,4632.8,4632.7,4.07866843]
[1757779919965,4.656,4632.8,4632.7,0.3138]
[1757779920192,5.3862,4632.8,4632.0,0.00100001]
[1757779920461,2.95061551,4632.6,4632.0,0.00100001]
[1757779920643,0.792,4632.4,4632.0,0.00100001]
[1757779920842,2.15881945,4632.2,4632.0,0.00100001]
[1757779921042,6.4081,4632.1,4632.0,0.00100001]
[1757779921347,10.02886068,4632.1,4632.0,0.00100001]
[1757779921544,10.82086068,4632.1,4632.0,0.00100001]
[1757779922364,10.41516068,4632.1,4632.0,0.00100001]
[1757779922551,10.82086068,4632.1,4632.0,0.00100001]
[1757779922752,10.41516068,4632.1,4632.0,0.00100001]
[1757779922968,8.25631265,4632.1,4632.0,0.00100001]
[1757779923480,10.41516068,4632.1,4632.0,0.00100001]
[1757779924769,1.97059422,4632.1,4632.0,0.00100001]
[1757779924987,1.656,4632.1,4632.0,0.31480001]
[1757779925173,6.299,4632.1,4632.0,1.92110001]
[1757779925994,1.656,4632.1,4632.0,4.07999465]
[1757779926553,6.297,4632.1,4632.0,4.07999465]
[1757779926871,6.297,4632.1,4632.0,2.54715605]
[1757779927090,6.296,4632.1,4632.0,4.70605069]
[1757779927500,1.656,4632.1,4632.0,4.70605069]
[1757779927802,6.295,4632.1,4632.0,4.70605069]
[1757779928366,6.295,4632.1,4632.0,1.92110001]
[1757779928680,6.295,4632.1,4632.0,4.07999465]
[1757779929554,6.291,4632.1,4632.0,4.07999465]
[1757779930182,1.656,4632.1,4632.0,4.07999465]
[1757779930382,6.291,4632.1,4632.0,4.07999465]
[1757779930808,6.29,4632.1,4632.0,4.07999465]
[1757779930980,6.289,4632.1,4632.0,4.70605012]
[1757779931319,9.063,4632.1,4632.0,4.07999465]
[1757779931491,9.063,4632.1,4632.0,0.00100001]
[1757779932079,9.3635,4632.1,4632.0,0.00100001]
[1757779933107,9.063,4632.1,4632.0,0.00100001]
[1757779934252,11.52234803,4632.1,4632.0,0.00100001]
[1757779934431,12.69551283,4632.1,4632.0,0.00100001]
[1757779934709,11.5379648,4632.1,4632.0,0.00100001]
[1757779934909,13.69681283,4632.1,4632.0,0.00100001]
[1757779936133,13.81482749,4632.1,4632.0,0.00100001]
[1757779936419,9.37850989,4632.1,4632.0,0.00100001]
[1757779936582,14.00150989,4632.1,4632.0,0.00100001]
[1757779938199,13.59252749,4632.1,4632.0,0.00100001]
[1757779938666,8.97252749,4632.1,4632.0,0.00100001]
[1757779938872,13.17401283,4632.1,4632.0,0.00100001]
[1757779939287,13.47161283,4632.1,4632.0,0.00100001]
[1757779940123,13.17101283,4632.1,4632.0,0.00100001]
[1757779940281,13.47061283,4632.1,4632.0,0.00100001]
[1757779940483,13.67981283,4632.1,4632.0,0.00100001]
[1757779940820,13.46961283,4632.1,4632.0,0.00100001]
[1757779941117,4.43,4632.1,4632.0,0.00100001]
[1757779941316,11.20484803,4632.1,4632.0,0.00100001]
[1757779941694,4.43,4632.1,4632.0,0.00100001]
[1757779941918,9.045,4632.1,4632.0,0.76670001]
[1757779942138,4.43,4632.1,4632.0,0.76670001]
[1757779942301,9.044,4632.1,4632.0,2.02240001]
[1757779942705,9.044,4632.1,4632.0,0.31340001]
[1757779943016,11.20284803,4632.1,4632.0,0.00100001]
[1757779943221,12.63820414,4632.1,4632.0,0.00100001]
[1757779943403,13.43020414,4632.1,4632.0,0.00100001]
[1757779944536,13.83900414,4632.1,4632.0,0.00100001]
[1757779945223,13.95696222,4632.1,4632.0,0.00100001]
[1757779945947,13.54816222,4632.1,4632.0,0.00100001]
[1757779946123,8.83516222,4632.1,4632.0,0.00100001]
[1757779946305,13.44116222,4632.1,4632.0,0.00100001]
[1757779946506,6.67631419,4632.1,4632.0,0.00100001]
[1757779946726,13.42430414,4632.1,4632.0,0.00100001]
[1757779947190,8.71720414,4632.1,4632.0,0.00100001]
[1757779947396,13.63700414,4632.1,4632.0,0.00100001]
[1757779947804,13.75498249,4632.1,4632.0,0.00100001]
[1757779948040,13.94908249,4632.1,4632.0,0.00100001]
[1757779948441,9.15098249,4632.1,4632.0,0.00100001]
[1757779948642,13.63500414,4632.1,4632.0,0.00100001]
[1757779948807,13.75301668,4632.1,4632.0,0.00100001]
[1757779949011,20.77301668,4632.1,4632.0,0.00100001]
[1757779949332,20.96981146,4632.1,4632.0,0.00100001]
[1757779949746,20.65401146,4632.1,4632.0,0.00100001]
[1757779949904,20.96861146,4632.1,4632.0,0.00100001]
[1757779950204,16.05301146,4632.1,4632.0,0.00100001]
[1757779950400,20.75001146,4632.1,4632.0,0.00100001]
[1757779951012,21.15881146,4632.1,4632.0,0.00100001]
[1757779951406,20.75001146,4632.1,4632.0,0.00100001]
[1757779952128,21.15881146,4632.1,4632.0,0.00100001]
[1757779952506,21.35557851,4632.1,4632.0,0.00100001]
[1757779953249,24.55177851,4632.1,4632.0,0.00100001]
[1757779953440,14.75777851,4632.1,4632.0,0.00100001]
[1757779953650,16.50390499,4632.1,4632.0,0.00100001]
[1757779954121,16.50389311,4632.1,4632.0,0.00100001]
[1757779954315,8.35089311,4632.1,4632.0,0.00100001]
[1757779954522,14.14476663,4632.1,4632.0,0.00100001]
[1757779954920,14.55356663,4632.1,4632.0,0.00100001]
[1757779955447,9.96356663,4632.1,4632.0,0.00100001]
[1757779955649,14.14476663,4632.1,4632.0,0.00100001]
[1757779955946,13.94599958,4632.1,4632.0,0.00100001]
[1757779956151,3.30815155,4632.1,4632.0,0.76670001]
[1757779956353,8.4223109,4632.1,4632.0,2.02240001]
[1757779956641,6.244,4632.1,4632.0,2.02240001]
[1757779957245,6.243,4632.1,4632.0,2.02240001]
[1757779957446,1.657,4632.1,4632.0,2.02240001]
[1757779957750,6.242,4632.1,4632.0,2.02240001]
[1757779958335,6.8664,4632.1,4632.0,0.00100001]
[1757779958639,1.657,4632.1,4632.0,2.02240001]
[1757779958835,6.24,4632.1,4632.0,0.76670001]
[1757779959007,6.24,4632.1,4632.0,0.31340001]
[1757779959213,8.39884803,4632.1,4632.0,0.00100001]
[1757779959623,9.19084803,4632.1,4632.0,0.00100001]
[1757779959954,10.44407892,4632.1,4632.0,0.00100001]
[1757779960253,10.44107892,4632.1,4632.0,0.00100001]
[1757779960456,6.05788324,4632.1,4632.0,0.00100001]
[1757779960662,10.63788324,4632.1,4632.0,0.00100001]
[1757779961542,10.73688324,4632.1,4632.0,0.00100001]
[1757779961749,6.15688324,4632.1,4632.0,0.00100001]
[1757779961908,10.63588324,4632.1,4632.0,0.00100001]
[1757779962740,3.89903521,4632.1,4632.0,0.76670001]
[1757779962943,7.026,4632.1,4632.0,2.02240001]
[1757779963145,7.33887461,4632.1,4632.0,2.02240001]
[1757779963331,1.77507029,4632.1,4632.0,2.02240001]
[1757779963529,6.231,4632.1,4632.0,2.02240001]
[1757779963723,6.34907029,4632.1,4632.0,2.02240001]
[1757779964147,6.231,4632.1,4632.0,2.02240001]
[1757779964445,10.02230717,4632.1,4632.0,0.00100001]
[1757779964618,10.21923702,4632.1,4632.0,0.00100001]
[1757779965007,10.21923604,4632.1,4632.0,0.00100001]
[1757779965437,10.11623604,4632.1,4632.0,0.00100001]
[1757779966050,10.21523604,4632.1,4632.0,0.00100001]
[1757779966949,7.16338801,4632.1,4632.0,0.75510001]
[1757779967245,6.53808801,4632.1,4632.0,1.98250001]
[1757779967420,6.223,4632.1,4632.0,1.98250001]
[1757779968049,8.997,4632.1,4632.0,1.98250001]
[1757779968228,11.15584803,4632.1,4632.0,1.98250001]
[1757779968423,8.997,4632.1,4632.0,1.98250001]
[1757779968624,4.431,4632.1,4632.0,1.98250001]
[1757779968950,8.994,4632.1,4632.0,1.98250001]
[1757779969447,13.06032419,4632.1,4632.0,0.00100001]
[1757779970463,6.33847616,4632.1,4632.0,1.89390001]
[1757779970762,8.991,4632.1,4632.0,1.89390001]
[1757779970920,8.99,4632.1,4632.0,1.89390001]
[1757779972518,4.431,4632.1,4632.0,1.89390001]
[1757779972738,8.988,4632.1,4632.0,1.89390001]
[1757779972945,4.431,4632.1,4632.0,1.89390001]
[1757779973421,8.986,4632.1,4632.0,1.89390001]
[1757779974135,8.986,4632.1,4632.0,4.05279465]
[1757779974334,8.984,4632.1,4632.0,1.89390001]
[1757779975318,8.984,4632.1,4632.0,0.76240001]
[1757779975749,8.984,4632.1,4632.0,1.89390001]
[1757779976139,4.431,4632.1,4632.0,1.89390001]
[1757779976344,8.983,4632.1,4632.0,0.00100001]
[1757779976652,12.4721034,4632.1,4632.0,0.00100001]
[1757779977027,2.15897874,4631.9,4631.5,0.41480001]
[1757779977232,4.547,4631.8,4631.5,0.41480001]
[1757779977546,4.547,4631.8,4631.2,2.15926652]
[1757779977760,4.547,4631.8,4631.7,0.2986]
[1757779977948,2.774,4631.9,4631.7,0.2986]
[1757779978314,4.545,4631.8,4631.7,1.4301]
[1757779978952,2.774,4631.9,4631.7,1.8929]
[1757779979149,4.545,4631.8,4631.7,0.2986]
[1757779979717,2.774,4631.9,4631.7,1.8929]
[1757779979922,2.774,4631.9,4631.8,1.5943]
[1757779980153,6.0954,4631.9,4631.8,1.8929]
[1757779980537,6.0954,4631.9,4631.8,0.7614]
[1757779980735,6.0954,4631.9,4631.8,2.92038786]
[1757779981231,6.0934,4631.9,4631.8,1.8929]
[1757779981420,6.0934,4631.9,4631.8,4.05188786]
[1757779981624,1.5544,4631.9,4631.8,4.67298768]
[1757779981825,1.657,4632.1,4632.0,2.15889464]
[1757779982058,6.195,4632.1,4632.0,2.15889464]
[1757779982241,6.195,4632.1,4632.0,4.05179464]
[1757779982442,0.002,4632.2,4632.1,2.15884803]
[1757779982663,4.539,4632.2,4632.1,3.75314803]
[1757779982833,0.002,4632.2,4632.1,4.05174803]
[1757779983071,4.538,4632.2,4632.1,4.05174803]
[1757779983756,4.536,4632.2,4632.1,4.05174803]
[1757779983960,4.536,4632.2,4632.1,4.74113093]
[1757779984133,4.536,4632.2,4632.1,1.8929]
[1757779984324,4.536,4632.2,4632.1,4.05174803]
[1757779984529,4.536,4632.2,4632.1,1.8929]
[1757779985220,4.536,4632.2,4632.1,0.7614]
[1757779985622,4.536,4632.2,4632.1,2.92024803]
[1757779986564,0.002,4632.2,4632.1,0.7614]
[1757779986745,4.532,4632.2,4632.1,0.7614]
[1757779986951,4.532,4632.2,4632.1,2.92024803]
[1757779987168,4.6392,4632.2,4632.1,4.05174803]
[1757779988254,0.1092,4632.2,4632.1,4.67281668]
[1757779988453,4.53,4632.2,4632.1,4.67281668]
[1757779989554,0.002,4632.2,4632.1,4.67281668]
[1757779989758,4.524,4632.2,4632.1,4.67281668]
[1757779989960,0.002,4632.2,4632.1,2.51396865]
[1757779990162,4.524,4632.2,4632.1,4.05174803]
[1757779990869,0.002,4632.2,4632.1,4.07333651]
[1757779991060,4.522,4632.2,4632.1,7.07333651]
[1757779991375,0.002,4632.2,4632.1,7.05174803]
[1757779993848,1e-08,4632.8,4632.1,4.8929]
[1757779994051,1e-08,4632.8,4632.7,2.15856843]
[1757779994241,1e-08,4632.8,4632.7,2.18015411]
[1757779994451,1e-08,4632.8,4632.7,7.07305411]
[1757779994655,1e-08,4633.3,4633.2,2.15833549]
[1757779994857,1e-08,4633.3,4633.2,2.17991884]
[1757779995085,1e-08,4633.3,4633.2,7.78506811]
[1757779996688,1e-08,4633.3,4633.2,7.8929779]
[1757780000268,1e-08,4633.3,4633.2,4.78506811]
[1757780000469,0.31350001,4633.3,4633.2,2.15833549]
[1757780000875,0.31350001,4633.3,4633.2,2.26553549]
[1757780003595,1e-08,4633.3,4633.2,2.57043549]
[1757780003898,1e-08,4633.3,4633.2,4.24781884]
[1757780004496,1e-08,4633.3,4633.2,4.22623549]
[1757780004684,1e-08,4633.3,4633.2,5.16469977]
[1757780005264,1e-08,4633.3,4633.2,5.05749977]
[1757780005465,1e-08,4633.3,4633.2,5.16469977]
[1757780006400,1e-08,4633.3,4633.2,8.16469977]
[1757780007832,0.08,4634.8,4634.7,2.15763695]
[1757780008117,1.656,4635.3,4635.2,2.15740421]
[1757780008273,1.656,4635.3,4635.2,2.46230421]
[1757780008467,1.656,4635.3,4635.2,5.56950421]
[1757780008712,1.656,4635.3,4635.2,6.04250421]
[1757780009069,0.1072,4636.0,4635.9,2.15707845]
[1757780009398,1.656,4636.3,4636.2,2.15693887]
[1757780009578,0.1283,4635.3,4634.7,0.1072]
[1757780010014,0.1283,4635.3,4635.2,2.15740421]
[1757780010170,0.1283,4635.3,4635.2,2.17897825]
[1757780010371,0.1283,4635.3,4635.2,2.15740421]
[1757780010778,1.7632,4635.5,4635.4,2.15731112]
[1757780011269,1.7632,4635.5,4635.4,2.17888423]
[1757780011469,1.656,4635.5,4635.4,5.89368265]
[1757780011682,1.656,4635.5,4635.4,6.47388265]
[1757780011882,1.656,4635.5,4635.4,7.65668265]
[1757780012079,0.1072,4636.1,4636.0,2.15703192]
[1757780012306,0.1072,4636.1,4636.0,2.17860223]
[1757780012503,1.656,4636.2,4636.1,2.15698539]
[1757780014703,1.9904,4636.2,4636.1,2.15698539]
[1757780014928,1.656,4636.2,4636.1,5.48345524]
[1757780015072,0.002,4636.3,4636.2,5.15693887]
[1757780015271,0.002,4636.3,4636.2,2.15693887]
[1757780015495,0.002,4636.3,4636.2,3.77008301]
[1757780016406,0.002,4636.3,4636.2,4.95288301]
[1757780017103,0.002,4636.3,4636.2,3.77008301]
[1757780018680,0.002,4636.3,4636.2,4.97445239]
[1757780018898,0.002,4636.3,4636.2,4.95288301]
[1757780019420,0.002,4636.3,4636.2,12.41288301]
[1757780019719,1e-08,4636.8,4636.7,2.15670627]
[1757780020010,1e-08,4636.8,4636.7,5.6096217]
[1757780020176,1e-08,4636.8,4636.7,7.54875464]
[1757780023506,1e-08,4637.5,4637.4,2.15638073]
[1757780023732,1e-08,4637.5,4637.4,2.17794453]
[1757780023926,1e-08,4637.5,4637.4,2.95584453]
[1757780024126,1e-08,4637.5,4637.4,4.3304541]
[1757780024308,1e-08,4637.5,4637.4,4.43786738]
[1757780024508,1e-08,4637.5,4637.4,4.41630358]
[1757780024918,1e-08,4637.5,4637.4,8.2848903]
[1757780025123,1e-08,4637.5,4637.4,13.15417527]
[1757780025519,1e-08,4637.5,4637.4,6.74447527]
[1757780025841,1e-08,4637.5,4637.4,8.60157527]
[1757780026738,1e-08,4637.5,4637.4,13.04457527]
[1757780027708,1e-08,4637.5,4637.4,8.14537527]
[1757780028030,1e-08,4637.5,4637.4,11.49777527]
[1757780028241,1.21370001,4637.5,4637.4,2.15638073]
[1757780028447,1.63990001,4637.5,4637.4,2.15638073]
[1757780028642,1.63990001,4637.5,4635.4,0.4572]
[1757780028842,1.63990001,4637.5,4635.7,2.15717151]
[1757780029046,1.5943,4637.4,4637.1,2.15651755]
[1757780029358,0.3005,4637.2,4635.3,3.30661598]
[1757780029518,0.3005,4637.2,4635.4,4.437]
[1757780029519,3.09836287,4637.1,4635.4,4.437]
[1757780029719,1.598,4637.0,4636.6,1.65674028]
[1757780029925,0.1287,4636.7,4636.6,1.65674028]
[1757780030125,0.1287,4636.7,4636.4,2.15680432]
[1757780030419,1.595,4636.6,4635.4,4.437]
[1757780030619,1.1681,4636.5,4635.5,2.76645919]
[1757780030850,6.033,4637.0,4635.6,0.02157218]
[1757780031056,6.033,4637.0,4636.6,2.15671015]
[1757780031251,0.1287,4636.7,4636.6,2.15671015]
[1757780033347,0.1287,4636.7,4636.6,2.17827767]
[1757780033543,0.1287,4636.7,4636.6,2.15671015]
[1757780033745,1.7237,4636.7,4635.5,3.6092]
[1757780033951,1.7237,4636.7,4635.0,1.1493]
[1757780033952,1.7237,4636.7,4635.6,0.80432]
[1757780034157,1.7237,4636.7,4636.6,2.15675279]
[1757780034464,1.7237,4636.7,4635.7,3.0]
[1757780034656,1.1681,4636.6,4635.6,3.80432]
[1757780034836,1.1681,4636.6,4636.5,2.1567993]
[1757780035038,1.2998,4636.6,4636.5,2.1567993]
[1757780035565,1.7237,4636.6,4636.5,2.1567993]
[1757780036485,1.7237,4636.6,4635.5,2.15726458]
[1757780036690,1.7237,4636.6,4636.4,2.1568338]
[1757780036852,1.592,4636.5,4636.1,2.15693913]
[1757780037052,0.3005,4636.2,4636.1,2.15698539]
[1757780037590,3.3804,4636.2,4634.5,1.1493]
[1757780037888,0.01946287,4636.1,4635.5,2.15725367]
[1757780038092,0.3001,4635.6,4634.8,0.20293]
[1757780038392,4.7211,4635.6,4635.3,2.15734953]
[1757780038572,1.1681,4635.5,4634.9,0.1072]
[1757780038889,4.419,4635.4,4635.2,2.15739852]
[1757780039077,0.1072,4635.2,4634.9,2.15751265]
[1757780039678,0.1072,4635.2,4635.0,0.02157497]
[1757780039893,0.1072,4635.2,4635.1,2.15745075]
[1757780040191,0.4069,4635.2,4635.1,2.15745075]
[1757780040388,0.4069,4635.2,4635.1,2.17902525]
[1757780040985,0.1072,4635.2,4635.1,2.17902525]
[1757780041181,0.2359,4635.2,4635.1,2.17902525]
[1757780041494,2.46149,4635.2,4634.8,0.08]
[1757780041698,0.86649,4635.2,4634.8,0.08]
[1757780041860,0.1072,4635.0,4634.8,0.08]
[1757780042058,0.1317,4634.9,4634.8,0.08]
[1757780042498,0.1317,4634.9,4634.8,2.2375904]
[1757780043069,0.1072,4635.0,4634.8,2.2375904]
[1757780043292,4.414,4634.9,4634.8,2.2375904]
[1757780043489,0.1072,4635.0,4634.9,2.15754385]
[1757780043690,4.8526,4635.0,4634.9,2.17911928]
[1757780043890,0.3344,4635.0,4634.9,2.47591928]
[1757780044089,0.3344,4635.0,4634.9,4.55377431]
[1757780044312,0.3344,4635.0,4634.9,4.53219888]
[1757780044616,1.48326058,4636.3,4634.9,4.53219888]
[1757780044617,0.3344,4636.1,4634.9,5.37465503]
[1757780044806,0.1072,4636.3,4635.5,0.1072]
[1757780045006,0.1072,4636.3,4636.2,2.15693887]
[1757780045207,0.1072,4636.3,4636.2,2.17850825]
[1757780045515,0.1072,4636.6,4636.4,2.15680368]
[1757780045717,0.1072,4636.6,4636.5,2.1567993]
[1757780049591,0.1072,4636.6,4636.5,2.1577993]
[1757780049926,0.1072,4636.6,4636.5,0.001]
[1757780050220,0.1072,4636.6,4636.5,2.1577993]
[1757780050526,0.4416,4636.6,4636.5,2.1577993]
[1757780050921,4.8376,4636.6,4636.5,2.1577993]
[1757780051226,4.9663,4636.6,4636.5,0.001]
[1757780051401,6.1344,4636.6,4636.5,0.001]
[1757780051605,6.5613,4636.6,4636.5,0.001]
[1757780051823,7.38293,4636.6,4636.5,0.001]
[1757780052026,8.17493,4636.6,4636.5,0.001]
[1757780052529,10.33168279,4636.6,4636.5,0.001]
[1757780052903,10.22448279,4636.6,4636.5,0.001]
[1757780053806,10.21948279,4636.6,4636.5,0.001]
[1757780054122,10.21848279,4636.6,4636.5,0.001]
[1757780055624,6.46373,4636.6,4636.5,0.001]
[1757780055821,0.4631,4636.6,4636.5,0.001]
[1757780056202,0.3344,4636.6,4636.5,2.1577993]
[1757780056536,6.3744,4636.6,4636.5,0.001]
[1757780060215,6.3744,4636.6,4636.5,2.1577993]
[1757780060832,1.9894,4636.6,4636.5,2.1577993]
[1757780061040,0.3344,4636.6,4636.5,2.4481993]
[1757780061347,6.3654,4636.6,4636.5,3.9893993]
[1757780061750,0.3344,4636.6,4636.5,3.9893993]
[1757780062153,0.3344,4636.6,4636.5,4.60618303]
[1757780062353,1.655,4636.8,4636.7,2.15670627]
[1757780062515,1.655,4636.8,4636.7,2.17827333]
[1757780062720,0.33440001,4637.5,4637.4,2.15638073]
[1757780063026,4.48020001,4637.5,4637.4,3.98798073]
[1757780063352,0.10720001,4637.5,4637.4,3.98798073]
[1757780063715,4.37200001,4637.5,4637.4,3.98798073]
[1757780065025,1e-08,4637.5,4637.4,3.98798073]
[1757780065243,4.37200001,4637.5,4637.4,3.98798073]
[1757780065831,4.49410001,4637.5,4636.7,1.1064]
[1757780066060,4.49410001,4637.5,4637.2,2.15646229]
[1757780066521,4.49410001,4637.5,4637.1,2.15651654]
[1757780066723,4.49410001,4637.5,4636.7,1.1064]
[1757780066957,4.49410001,4637.5,4636.5,3.4358]
[1757780067121,0.002,4637.1,4636.9,2.15656994]
[1757780067328,4.365,4637.0,4636.9,2.15656994]
[1757780068025,0.002,4637.1,4637.0,2.15656674]
[1757780068265,0.002,4637.1,4637.0,4.17968607]
[1757780068464,2.294,4637.1,4637.0,4.44852041]
[1757780068970,2.294,4637.1,4637.0,3.34212041]
[1757780069542,4.364,4637.1,4637.0,4.44852041]
[1757780069755,4.364,4637.1,4637.0,2.61692041]
[1757780070053,4.364,4637.1,4637.0,2.15656674]
[1757780072859,4.364,4637.1,4637.0,2.44696674]
[1757780073026,0.002,4637.1,4637.0,3.98816674]
[1757780073226,4.355,4637.1,4637.0,3.98816674]
[1757780073427,0.002,4637.1,4637.0,3.98816674]
[1757780074048,4.354,4637.1,4637.0,2.44696674]
[1757780074647,4.354,4637.1,4637.0,2.15656674]
[1757780075678,4.4761,4637.1,4637.0,2.15656674]
[1757780075875,4.354,4637.1,4637.0,2.15656674]
[1757780077388,4.6884,4637.1,4637.0,2.15656674]
[1757780078378,4.8105,4637.1,4636.5,0.001]
[1757780078578,4.8105,4637.1,4637.0,2.15656674]